[Event "*** SCC Grand Prix: Titled Tuesday Blitz"]
[Site "Chess.com"]
[Date "2020.10.06"]
[Round "4"]
[White "Arfan48"]
[Black "RobPeresian"]
[Result "0-1"]
[WhiteElo "2199"]
[BlackElo "2448"]
[TimeControl "180+1"]
[EndTime "10:38:32 PDT"]
[Termination "RobPeresian won by resignation"]

1. e4 {[%clk 0:03:00.9]} 1... e5 {[%clk 0:02:54.4]} 2. Nf3 {[%clk 0:03:00.1]}
2... Nc6 {[%clk 0:02:54.1]} 3. d4 {[%clk 0:03:00.7]} 3... exd4 {[%clk
0:02:49.2]} 4. Nxd4 {[%clk 0:03:01.6]} 4... Nf6 {[%clk 0:02:46.9]} 5. Nxc6
{[%clk 0:03:01.4]} 5... bxc6 {[%clk 0:02:45.8]} 6. e5 {[%clk 0:03:02.1]} 6...
Qe7 {[%clk 0:02:45.2]} 7. Qe2 {[%clk 0:03:02.7]} 7... Nd5 {[%clk 0:02:45.4]} 8.
c4 {[%clk 0:03:03.2]} 8... Nb6 {[%clk 0:02:45.9]} 9. Nc3 {[%clk 0:03:00.6]} 9...
Qe6 {[%clk 0:02:41.6]} 10. Qe4 {[%clk 0:03:00.6]} 10... g6 {[%clk 0:02:37.8]}
11. Bd2 {[%clk 0:02:44.9]} 11... Bg7 {[%clk 0:02:36.1]} 12. f4 {[%clk
0:02:39.7]} 12... O-O {[%clk 0:02:29.2]} 13. O-O-O {[%clk 0:02:38.7]} 13... a5
{[%clk 0:02:23.2]} 14. Bd3 {[%clk 0:02:33.6]} 14... Ba6 {[%clk 0:02:18.6]} 15.
b3 {[%clk 0:02:25]} 15... a4 {[%clk 0:02:15.3]} 16. h4 {[%clk 0:02:17]} 16...
axb3 {[%clk 0:02:13.5]} 17. axb3 {[%clk 0:02:17.9]} 17... d5 {[%clk 0:01:48.9]}
18. exd6 {[%clk 0:02:00.4]} 18... Qxd6 {[%clk 0:01:47.6]} 19. Kc2 {[%clk
0:02:00.6]} 19... Nd7 {[%clk 0:01:17.3]} 20. Qf3 {[%clk 0:01:33.9]} 20... Rfb8
{[%clk 0:01:06.2]} 21. Ra1 {[%clk 0:00:44]} 21... Nc5 {[%clk 0:01:00.4]} 22.
Rhb1 {[%clk 0:00:43.3]} 22... Nxb3 {[%clk 0:00:31]} 23. Rxb3 {[%clk 0:00:22.3]}
23... Rxb3 {[%clk 0:00:30.6]} 24. Kxb3 {[%clk 0:00:21]} 24... Bxc4+ {[%clk
0:00:30.7]} 25. Bxc4 {[%clk 0:00:21.4]} 25... Rxa1 {[%clk 0:00:30.6]} 26. Qe2
{[%clk 0:00:17.7]} 26... Qa3+ {[%clk 0:00:26.1]} 27. Kc2 {[%clk 0:00:17.6]}
27... Kf8 {[%clk 0:00:18.1]} 28. Qe4 {[%clk 0:00:11.6]} 28... Bxc3 {[%clk
0:00:16.6]} 29. Bxc3 {[%clk 0:00:11.9]} 29... Rc1+ {[%clk 0:00:16.3]} 30. Kd2
{[%clk 0:00:10]} 30... Qxc3+ {[%clk 0:00:16.8]} 0-1

[Event "*** SCC Grand Prix: Titled Tuesday Blitz"]
[Site "Chess.com"]
[Date "2020.10.06"]
[Round "4"]
[White "icychess54"]
[Black "juli2512"]
[Result "1-0"]
[WhiteElo "2251"]
[BlackElo "2040"]
[TimeControl "180+1"]
[EndTime "10:38:33 PDT"]
[Termination "icychess54 won by checkmate"]

1. c4 {[%clk 0:03:00.9]} 1... e5 {[%clk 0:02:55.2]} 2. Nf3 {[%clk 0:03:01.5]}
2... d6 {[%clk 0:02:52.9]} 3. Nc3 {[%clk 0:03:01.9]} 3... f5 {[%clk 0:02:52]} 4.
d4 {[%clk 0:03:02.1]} 4... e4 {[%clk 0:02:51.9]} 5. Nd2 {[%clk 0:03:02.5]} 5...
Nf6 {[%clk 0:02:51.7]} 6. b3 {[%clk 0:03:03]} 6... Nc6 {[%clk 0:02:49.8]} 7. Bb2
{[%clk 0:03:03.3]} 7... g6 {[%clk 0:02:49.2]} 8. e3 {[%clk 0:03:03.8]} 8... Bg7
{[%clk 0:02:48.7]} 9. Be2 {[%clk 0:03:04.3]} 9... O-O {[%clk 0:02:48.2]} 10. O-O
{[%clk 0:03:04.8]} 10... Ne7 {[%clk 0:02:47.4]} 11. f3 {[%clk 0:03:04.8]} 11...
exf3 {[%clk 0:02:46.4]} 12. Bxf3 {[%clk 0:03:05.7]} 12... c6 {[%clk 0:02:39.3]}
13. d5 {[%clk 0:02:51.8]} 13... Ng4 {[%clk 0:02:27.9]} 14. Bxg4 {[%clk
0:02:34.1]} 14... fxg4 {[%clk 0:02:27.3]} 15. dxc6 {[%clk 0:02:02.3]} 15... bxc6
{[%clk 0:02:17.9]} 16. Rxf8+ {[%clk 0:01:53.6]} 16... Qxf8 {[%clk 0:02:13.4]}
17. Nde4 {[%clk 0:01:48.1]} 17... Nf5 {[%clk 0:01:58.9]} 18. Qd2 {[%clk
0:01:41.3]} 18... Bh6 {[%clk 0:01:52.1]} 19. Nd1 {[%clk 0:01:27.1]} 19... Be6
{[%clk 0:01:37.7]} 20. Nf6+ {[%clk 0:01:26.4]} 20... Kf7 {[%clk 0:01:31.1]} 21.
Nxg4 {[%clk 0:01:25.7]} 21... Bg5 {[%clk 0:01:24]} 22. Nc3 {[%clk 0:01:00]}
22... h5 {[%clk 0:01:19.5]} 23. Ne4 {[%clk 0:00:59.9]} 23... Be7 {[%clk
0:00:53.6]} 24. Ngf6 {[%clk 0:00:53.6]} 24... Bxf6 {[%clk 0:00:40.1]} 25. Nxf6
{[%clk 0:00:53.4]} 25... Qh6 {[%clk 0:00:26.9]} 26. Re1 {[%clk 0:00:29.9]} 26...
Rd8 {[%clk 0:00:15.5]} 27. Qc3 {[%clk 0:00:28.5]} 27... d5 {[%clk 0:00:13.4]}
28. cxd5 {[%clk 0:00:27.4]} 28... Bxd5 {[%clk 0:00:13.5]} 29. Nxd5 {[%clk
0:00:27]} 29... Rxd5 {[%clk 0:00:11]} 30. e4 {[%clk 0:00:24.8]} 30... Rd2 {[%clk
0:00:07]} 31. exf5 {[%clk 0:00:22.6]} 31... Qg5 {[%clk 0:00:07]} 32. Qg7# {[%clk
0:00:21.9]} 1-0

[Event "*** SCC Grand Prix: Titled Tuesday Blitz"]
[Site "Chess.com"]
[Date "2020.10.06"]
[Round "4"]
[White "remi04"]
[Black "sergiochess83"]
[Result "1-0"]
[WhiteElo "2558"]
[BlackElo "2777"]
[TimeControl "180+1"]
[EndTime "10:38:36 PDT"]
[Termination "remi04 won by resignation"]

1. e4 {[%clk 0:03:00.9]} 1... c5 {[%clk 0:02:57.8]} 2. Nf3 {[%clk 0:03:00.6]}
2... d6 {[%clk 0:02:57.9]} 3. d4 {[%clk 0:03:00.7]} 3... cxd4 {[%clk 0:02:58.8]}
4. Qxd4 {[%clk 0:03:00.9]} 4... Nf6 {[%clk 0:02:59.3]} 5. Be2 {[%clk 0:03:00.6]}
5... Nc6 {[%clk 0:02:58.4]} 6. Qe3 {[%clk 0:03:00.6]} 6... g6 {[%clk 0:02:54.2]}
7. O-O {[%clk 0:03:00.5]} 7... Bg7 {[%clk 0:02:53.4]} 8. c4 {[%clk 0:03:01]}
8... O-O {[%clk 0:02:53.4]} 9. Nc3 {[%clk 0:03:01.5]} 9... Qa5 {[%clk
0:02:20.6]} 10. h3 {[%clk 0:02:54]} 10... Bd7 {[%clk 0:02:17.4]} 11. Rb1 {[%clk
0:02:52.8]} 11... Rac8 {[%clk 0:02:04.2]} 12. Qd2 {[%clk 0:02:37.2]} 12... Rfe8
{[%clk 0:01:26.3]} 13. b3 {[%clk 0:02:33.1]} 13... a6 {[%clk 0:01:13.2]} 14. Bb2
{[%clk 0:02:32.2]} 14... b5 {[%clk 0:01:11.4]} 15. cxb5 {[%clk 0:02:04.2]} 15...
axb5 {[%clk 0:01:11.1]} 16. Bxb5 {[%clk 0:02:04.5]} 16... Nxe4 {[%clk 0:01:06]}
17. Nxe4 {[%clk 0:02:04.5]} 17... Qxb5 {[%clk 0:01:05.5]} 18. Bxg7 {[%clk
0:02:04.3]} 18... Kxg7 {[%clk 0:01:06.4]} 19. Nc3 {[%clk 0:01:53.5]} 19... Qa5
{[%clk 0:01:01.2]} 20. b4 {[%clk 0:01:50]} 20... Nxb4 {[%clk 0:00:42.7]} 21.
Qd4+ {[%clk 0:01:32]} 21... e5 {[%clk 0:00:42.7]} 22. Qxd6 {[%clk 0:01:31.8]}
22... Bf5 {[%clk 0:00:24.3]} 23. Rxb4 {[%clk 0:01:19.9]} 23... Re6 {[%clk
0:00:21]} 24. Qd7 {[%clk 0:00:48.5]} 24... Rb6 {[%clk 0:00:21]} 25. Ra4 {[%clk
0:00:34.5]} 25... Qxc3 {[%clk 0:00:16.6]} 26. Qd5 {[%clk 0:00:33.3]} 26... Rc5
{[%clk 0:00:15.2]} 27. Qd8 {[%clk 0:00:29.8]} 27... Rbc6 {[%clk 0:00:06.9]} 28.
Ra8 {[%clk 0:00:28.3]} 28... Rc8 {[%clk 0:00:07.1]} 29. Rxc8 {[%clk 0:00:28.6]}
29... Bxc8 {[%clk 0:00:06.8]} 30. Ng5 {[%clk 0:00:26.2]} 30... Qd4 {[%clk
0:00:03.3]} 31. Qe7 {[%clk 0:00:24]} 31... Qd7 {[%clk 0:00:03.5]} 32. Qxc5
{[%clk 0:00:21.6]} 1-0

[Event "*** SCC Grand Prix: Titled Tuesday Blitz"]
[Site "Chess.com"]
[Date "2020.10.06"]
[Round "4"]
[White "Rodalquilar"]
[Black "FMKonstantin_Twitch"]
[Result "0-1"]
[WhiteElo "2775"]
[BlackElo "2557"]
[TimeControl "180+1"]
[EndTime "10:38:38 PDT"]
[Termination "FMKonstantin_Twitch won on time"]

1. d4 {[%clk 0:02:24.9]} 1... Nf6 {[%clk 0:02:58.6]} 2. Bf4 {[%clk 0:02:24.6]}
2... c5 {[%clk 0:02:56.9]} 3. e3 {[%clk 0:02:24.7]} 3... Qb6 {[%clk 0:02:54.8]}
4. Nc3 {[%clk 0:02:24.2]} 4... Qxb2 {[%clk 0:02:54.6]} 5. Nge2 {[%clk
0:02:23.5]} 5... d6 {[%clk 0:02:46.8]} 6. Rb1 {[%clk 0:02:15.1]} 6... Qa3 {[%clk
0:02:45]} 7. g4 {[%clk 0:02:13.9]} 7... Bxg4 {[%clk 0:02:30.5]} 8. Bg2 {[%clk
0:02:13.9]} 8... Nbd7 {[%clk 0:02:22.2]} 9. Rxb7 {[%clk 0:02:09.9]} 9... Rc8
{[%clk 0:02:15.2]} 10. O-O {[%clk 0:01:55.8]} 10... g5 {[%clk 0:02:02.7]} 11.
Bxg5 {[%clk 0:01:50.1]} 11... Rg8 {[%clk 0:02:01.3]} 12. Nb5 {[%clk 0:01:10.5]}
12... Qa5 {[%clk 0:01:30.9]} 13. f4 {[%clk 0:01:05.3]} 13... h6 {[%clk
0:01:20.2]} 14. Bxf6 {[%clk 0:00:59.9]} 14... Nxf6 {[%clk 0:01:21.1]} 15. Nxa7
{[%clk 0:00:56.2]} 15... Qa6 {[%clk 0:01:03.7]} 16. Nxc8 {[%clk 0:00:47.5]}
16... Bxe2 {[%clk 0:01:00.5]} 17. Rb8 {[%clk 0:00:47.7]} 17... Kd7 {[%clk
0:00:24.7]} 18. Nb6+ {[%clk 0:00:13.7]} 18... Kc7 {[%clk 0:00:24.6]} 19. Rc8+
{[%clk 0:00:13]} 19... Qxc8 {[%clk 0:00:21.7]} 20. Qxe2 {[%clk 0:00:11.4]} 20...
Kxb6 {[%clk 0:00:21.8]} 21. Rb1+ {[%clk 0:00:08.7]} 21... Kc7 {[%clk 0:00:22]}
22. Qb5 {[%clk 0:00:08.7]} 22... Qa8 {[%clk 0:00:21.8]} 23. e4 {[%clk
0:00:06.1]} 23... Nxe4 {[%clk 0:00:18.7]} 24. Qb6+ {[%clk 0:00:06.5]} 24... Kd7
{[%clk 0:00:18.5]} 25. dxc5 {[%clk 0:00:05]} 25... Rxg2+ {[%clk 0:00:16.9]} 26.
Kxg2 {[%clk 0:00:04.7]} 26... Nxc5+ {[%clk 0:00:17.8]} 27. Kg1 {[%clk
0:00:04.3]} 27... Bg7 {[%clk 0:00:18.1]} 28. Qb5+ {[%clk 0:00:03.9]} 28... Qc6
{[%clk 0:00:17.7]} 29. Qb8 {[%clk 0:00:01.9]} 29... Bd4+ {[%clk 0:00:17.1]} 0-1

[Event "*** SCC Grand Prix: Titled Tuesday Blitz"]
[Site "Chess.com"]
[Date "2020.10.06"]
[Round "4"]
[White "RobertoJBM"]
[Black "Zq1"]
[Result "1-0"]
[WhiteElo "2734"]
[BlackElo "2521"]
[TimeControl "180+1"]
[EndTime "10:38:39 PDT"]
[Termination "RobertoJBM won on time"]

1. d4 {[%clk 0:03:00.9]} 1... Nf6 {[%clk 0:02:59.5]} 2. c4 {[%clk 0:02:59.9]}
2... a6 {[%clk 0:02:59.1]} 3. Nc3 {[%clk 0:02:56.6]} 3... c5 {[%clk 0:02:59.1]}
4. d5 {[%clk 0:02:55.9]} 4... b5 {[%clk 0:02:58.8]} 5. f3 {[%clk 0:02:50.9]}
5... b4 {[%clk 0:02:56.6]} 6. Na4 {[%clk 0:02:47.4]} 6... d6 {[%clk 0:02:56.2]}
7. e4 {[%clk 0:02:47.4]} 7... g6 {[%clk 0:02:44.5]} 8. b3 {[%clk 0:02:45.5]}
8... Bg7 {[%clk 0:02:43.7]} 9. Nb2 {[%clk 0:02:44.5]} 9... a5 {[%clk 0:02:39.5]}
10. Rb1 {[%clk 0:02:43.7]} 10... O-O {[%clk 0:02:36]} 11. Bd3 {[%clk 0:02:43.7]}
11... Nbd7 {[%clk 0:02:31.9]} 12. Ne2 {[%clk 0:02:44.2]} 12... Nb6 {[%clk
0:02:26.4]} 13. O-O {[%clk 0:02:44]} 13... a4 {[%clk 0:02:25.3]} 14. Bc2 {[%clk
0:02:42]} 14... axb3 {[%clk 0:02:22.4]} 15. axb3 {[%clk 0:02:41.8]} 15... Ra2
{[%clk 0:02:17.7]} 16. Kh1 {[%clk 0:02:39.3]} 16... e6 {[%clk 0:02:12.3]} 17.
dxe6 {[%clk 0:02:23.4]} 17... Bxe6 {[%clk 0:02:08.9]} 18. Bf4 {[%clk 0:02:20.8]}
18... Nh5 {[%clk 0:02:06.2]} 19. Nd3 {[%clk 0:02:20.4]} 19... Nxf4 {[%clk
0:01:52.6]} 20. Ndxf4 {[%clk 0:02:14.5]} 20... Be5 {[%clk 0:01:41.4]} 21. Nxe6
{[%clk 0:02:11]} 21... fxe6 {[%clk 0:01:41.1]} 22. f4 {[%clk 0:02:10.7]} 22...
Bg7 {[%clk 0:01:33.4]} 23. Qd3 {[%clk 0:02:08.8]} 23... d5 {[%clk 0:01:21.8]}
24. cxd5 {[%clk 0:02:05.2]} 24... exd5 {[%clk 0:01:21.6]} 25. exd5 {[%clk
0:02:03.2]} 25... Qxd5 {[%clk 0:01:18.8]} 26. Ng3 {[%clk 0:01:52.3]} 26... Rd8
{[%clk 0:00:52.8]} 27. Qxd5+ {[%clk 0:01:49.3]} 27... Nxd5 {[%clk 0:00:44.9]}
28. Be4 {[%clk 0:01:28.4]} 28... Nc3 {[%clk 0:00:39.3]} 29. Rbe1 {[%clk
0:01:25.2]} 29... Nxe4 {[%clk 0:00:37.2]} 30. Nxe4 {[%clk 0:01:22.6]} 30... Bd4
{[%clk 0:00:33.8]} 31. f5 {[%clk 0:01:20.5]} 31... gxf5 {[%clk 0:00:30.9]} 32.
Rxf5 {[%clk 0:01:21.4]} 32... Rf8 {[%clk 0:00:27.1]} 33. Rg5+ {[%clk 0:01:15.6]}
33... Kh8 {[%clk 0:00:26.6]} 34. Nxc5 {[%clk 0:01:09.8]} 34... Bc3 {[%clk
0:00:14.8]} 35. Rd1 {[%clk 0:01:05.9]} 35... Rg8 {[%clk 0:00:09.3]} 36. Rxg8+
{[%clk 0:01:04.1]} 36... Kxg8 {[%clk 0:00:09.6]} 37. g3 {[%clk 0:01:02.7]} 37...
Rb2 {[%clk 0:00:07]} 38. Rd7 {[%clk 0:01:00.2]} 38... h5 {[%clk 0:00:06.6]} 39.
Rd5 {[%clk 0:00:57.6]} 39... h4 {[%clk 0:00:05.6]} 40. gxh4 {[%clk 0:00:58.1]}
40... Kg7 {[%clk 0:00:05.8]} 41. Rd6 {[%clk 0:00:55.1]} 41... Re2 {[%clk
0:00:04.3]} 42. Nd3 {[%clk 0:00:49.9]} 42... Rd2 {[%clk 0:00:02.7]} 43. Rd5
{[%clk 0:00:49]} 43... Kh6 {[%clk 0:00:01.7]} 44. h5 {[%clk 0:00:46]} 1-0

[Event "*** SCC Grand Prix: Titled Tuesday Blitz"]
[Site "Chess.com"]
[Date "2020.10.06"]
[Round "4"]
[White "Emp3rador"]
[Black "narutosmith"]
[Result "1-0"]
[WhiteElo "2423"]
[BlackElo "2215"]
[TimeControl "180+1"]
[EndTime "10:38:40 PDT"]
[Termination "Emp3rador won on time"]

1. e4 {[%clk 0:03:00.9]} 1... c5 {[%clk 0:02:59.5]} 2. Nf3 {[%clk 0:03:00.9]}
2... e6 {[%clk 0:02:59.5]} 3. d4 {[%clk 0:03:00.8]} 3... cxd4 {[%clk 0:02:59.4]}
4. Nxd4 {[%clk 0:03:01.7]} 4... Nc6 {[%clk 0:02:59.5]} 5. Nc3 {[%clk 0:03:01.5]}
5... Qc7 {[%clk 0:02:59.5]} 6. Be3 {[%clk 0:02:59.2]} 6... a6 {[%clk 0:02:59.6]}
7. Qf3 {[%clk 0:02:59.4]} 7... Nf6 {[%clk 0:02:48.7]} 8. O-O-O {[%clk
0:02:58.5]} 8... Be7 {[%clk 0:02:48.1]} 9. Nxc6 {[%clk 0:02:53.1]} 9... bxc6
{[%clk 0:02:47.9]} 10. Bf4 {[%clk 0:02:47.3]} 10... e5 {[%clk 0:02:45.1]} 11.
Bg5 {[%clk 0:02:46.2]} 11... d6 {[%clk 0:02:45]} 12. h3 {[%clk 0:02:46.1]} 12...
Be6 {[%clk 0:02:44.5]} 13. g4 {[%clk 0:02:46.2]} 13... Rb8 {[%clk 0:02:34.2]}
14. Kb1 {[%clk 0:02:32]} 14... Qb6 {[%clk 0:02:14.1]} 15. Bc1 {[%clk 0:02:21.6]}
15... d5 {[%clk 0:01:53.2]} 16. exd5 {[%clk 0:02:19.3]} 16... Nxd5 {[%clk
0:01:45.6]} 17. Bc4 {[%clk 0:02:11.6]} 17... O-O {[%clk 0:00:47.3]} 18. Bxd5
{[%clk 0:02:06.6]} 18... cxd5 {[%clk 0:00:45.5]} 19. Nxd5 {[%clk 0:02:06.7]}
19... Bxd5 {[%clk 0:00:45.7]} 20. Rxd5 {[%clk 0:02:04.2]} 20... Bg5 {[%clk
0:00:42.7]} 21. b3 {[%clk 0:01:57.1]} 21... Bxc1 {[%clk 0:00:39.8]} 22. Rxc1
{[%clk 0:01:56.6]} 22... a5 {[%clk 0:00:38.5]} 23. Qe4 {[%clk 0:01:55.9]} 23...
a4 {[%clk 0:00:36.7]} 24. Qxa4 {[%clk 0:01:55.2]} 24... Ra8 {[%clk 0:00:36.3]}
25. Qe4 {[%clk 0:01:55.1]} 25... Qxf2 {[%clk 0:00:32.6]} 26. Rxe5 {[%clk
0:01:54.8]} 26... Qd2 {[%clk 0:00:29.3]} 27. Rd5 {[%clk 0:01:36.9]} 27... Qc3
{[%clk 0:00:28.9]} 28. Qd4 {[%clk 0:01:34]} 28... Qxh3 {[%clk 0:00:27.8]} 29.
Rg5 {[%clk 0:01:28.2]} 29... Qh6 {[%clk 0:00:26.1]} 30. Rd5 {[%clk 0:01:20.4]}
30... Rae8 {[%clk 0:00:25.6]} 31. a4 {[%clk 0:01:19.5]} 31... Re2 {[%clk
0:00:23.8]} 32. Rd6 {[%clk 0:01:19.1]} 32... Qg5 {[%clk 0:00:22.2]} 33. Rd5
{[%clk 0:01:19.1]} 33... Qh6 {[%clk 0:00:19.4]} 34. a5 {[%clk 0:01:19.2]} 34...
Qa6 {[%clk 0:00:13.9]} 35. Qb6 {[%clk 0:01:16.6]} 35... Qa8 {[%clk 0:00:11.8]}
36. Rd7 {[%clk 0:01:13.1]} 36... Qf3 {[%clk 0:00:09.8]} 37. Rd8 {[%clk
0:01:10.8]} 37... Ree8 {[%clk 0:00:08.9]} 38. Rxe8 {[%clk 0:01:10]} 38... Rxe8
{[%clk 0:00:09.8]} 39. g5 {[%clk 0:01:08.8]} 39... Qf4 {[%clk 0:00:09]} 40. a6
{[%clk 0:01:07.5]} 40... Qxg5 {[%clk 0:00:08]} 41. a7 {[%clk 0:01:07.7]} 41...
Qg2 {[%clk 0:00:06.5]} 42. Kb2 {[%clk 0:01:00.9]} 42... Qe4 {[%clk 0:00:06]} 43.
Rd1 {[%clk 0:00:56.4]} 43... Qa8 {[%clk 0:00:04.4]} 44. Rd7 {[%clk 0:00:54.9]}
44... h5 {[%clk 0:00:03.6]} 45. Rb7 {[%clk 0:00:55.1]} 45... h4 {[%clk
0:00:02.1]} 46. Rb8 {[%clk 0:00:55.5]} 46... Qe4 {[%clk 0:00:01.7]} 47. Rxe8+
{[%clk 0:00:54.8]} 47... Qxe8 {[%clk 0:00:01.7]} 48. Qb8 {[%clk 0:00:55.7]} 1-0

[Event "*** SCC Grand Prix: Titled Tuesday Blitz"]
[Site "Chess.com"]
[Date "2020.10.06"]
[Round "4"]
[White "Shivagami"]
[Black "Happy1712Drummer"]
[Result "1-0"]
[WhiteElo "2221"]
[BlackElo "2394"]
[TimeControl "180+1"]
[EndTime "10:38:40 PDT"]
[Termination "Shivagami won by resignation"]

1. d4 {[%clk 0:03:00.9]} 1... d5 {[%clk 0:02:56.3]} 2. c4 {[%clk 0:02:56.4]}
2... c6 {[%clk 0:02:56.4]} 3. Nc3 {[%clk 0:02:55.7]} 3... Nf6 {[%clk 0:02:55.6]}
4. cxd5 {[%clk 0:02:55.8]} 4... cxd5 {[%clk 0:02:50]} 5. Bf4 {[%clk 0:02:56.2]}
5... a6 {[%clk 0:02:50]} 6. e3 {[%clk 0:02:55.7]} 6... Nc6 {[%clk 0:02:50]} 7.
Bd3 {[%clk 0:02:53.6]} 7... e6 {[%clk 0:02:49.9]} 8. Nge2 {[%clk 0:02:45.5]}
8... Be7 {[%clk 0:02:49.5]} 9. O-O {[%clk 0:02:44.7]} 9... O-O {[%clk
0:02:49.4]} 10. f3 {[%clk 0:02:35.4]} 10... Bd7 {[%clk 0:02:47.7]} 11. e4 {[%clk
0:02:33.7]} 11... Nb4 {[%clk 0:02:34.7]} 12. Bb1 {[%clk 0:02:28.5]} 12... Bb5
{[%clk 0:02:09.4]} 13. a3 {[%clk 0:02:22.5]} 13... Bxe2 {[%clk 0:01:55.9]} 14.
Qxe2 {[%clk 0:02:15.9]} 14... Nc6 {[%clk 0:01:56.8]} 15. e5 {[%clk 0:02:01.6]}
15... Nd7 {[%clk 0:00:42.5]} 16. Qd3 {[%clk 0:01:54.9]} 16... g6 {[%clk
0:00:40.8]} 17. b4 {[%clk 0:01:53.2]} 17... a5 {[%clk 0:00:37.1]} 18. b5 {[%clk
0:01:15.2]} 18... Nxd4 {[%clk 0:00:35.2]} 19. Kh1 {[%clk 0:01:15.3]} 19... Nb3
{[%clk 0:00:31.4]} 20. Ra2 {[%clk 0:01:12.4]} 20... Nbc5 {[%clk 0:00:30.6]} 21.
Qe2 {[%clk 0:01:08]} 21... Bg5 {[%clk 0:00:29.7]} 22. Bg3 {[%clk 0:01:02.6]}
22... Bh4 {[%clk 0:00:29.4]} 23. Bf4 {[%clk 0:01:01.5]} 23... b6 {[%clk
0:00:27.5]} 24. Bh6 {[%clk 0:01:00.9]} 24... Re8 {[%clk 0:00:26.5]} 25. f4
{[%clk 0:01:01.1]} 25... Rc8 {[%clk 0:00:23.4]} 26. g4 {[%clk 0:00:51.8]} 26...
Be7 {[%clk 0:00:22.8]} 27. f5 {[%clk 0:00:50.9]} 27... Bf8 {[%clk 0:00:19.9]}
28. Bxf8 {[%clk 0:00:48.7]} 28... Nxf8 {[%clk 0:00:18.9]} 29. f6 {[%clk
0:00:49.1]} 29... Ncd7 {[%clk 0:00:15.5]} 30. Qe3 {[%clk 0:00:46.6]} 30... Nxf6
{[%clk 0:00:05.9]} 31. exf6 {[%clk 0:00:46.2]} 31... Nd7 {[%clk 0:00:05.8]} 32.
g5 {[%clk 0:00:43.7]} 32... e5 {[%clk 0:00:04.7]} 33. Qh3 {[%clk 0:00:43.4]}
33... Nf8 {[%clk 0:00:03.5]} 34. Rd2 {[%clk 0:00:34.2]} 34... Ne6 {[%clk
0:00:04.4]} 35. Nxd5 {[%clk 0:00:32.8]} 35... Nf8 {[%clk 0:00:05.3]} 36. Ne7+
{[%clk 0:00:31.5]} 1-0

[Event "*** SCC Grand Prix: Titled Tuesday Blitz"]
[Site "Chess.com"]
[Date "2020.10.06"]
[Round "4"]
[White "venus02"]
[Black "Playgood28"]
[Result "1-0"]
[WhiteElo "2480"]
[BlackElo "2303"]
[TimeControl "180+1"]
[EndTime "10:38:41 PDT"]
[Termination "venus02 won by resignation"]

1. e4 {[%clk 0:03:00.9]} 1... e5 {[%clk 0:02:59.6]} 2. Nf3 {[%clk 0:03:00.6]}
2... d6 {[%clk 0:02:59.6]} 3. d4 {[%clk 0:02:59.3]} 3... exd4 {[%clk 0:03:00.5]}
4. Nxd4 {[%clk 0:02:59]} 4... Nf6 {[%clk 0:03:00.9]} 5. Nc3 {[%clk 0:02:59.1]}
5... Be7 {[%clk 0:03:01.4]} 6. f3 {[%clk 0:02:57.5]} 6... O-O {[%clk 0:03:00.3]}
7. Be3 {[%clk 0:02:57.5]} 7... c5 {[%clk 0:02:59.3]} 8. Nde2 {[%clk 0:02:55.2]}
8... a6 {[%clk 0:02:59]} 9. Qd2 {[%clk 0:02:51.4]} 9... b5 {[%clk 0:02:58.5]}
10. Nf4 {[%clk 0:02:51.4]} 10... Bb7 {[%clk 0:02:51.8]} 11. Be2 {[%clk
0:02:46.5]} 11... Nbd7 {[%clk 0:02:51.2]} 12. O-O {[%clk 0:02:44.4]} 12... Nb6
{[%clk 0:02:50.2]} 13. a3 {[%clk 0:02:34.7]} 13... d5 {[%clk 0:02:34.7]} 14.
exd5 {[%clk 0:02:31.8]} 14... Nfxd5 {[%clk 0:02:28.6]} 15. Ncxd5 {[%clk
0:02:29.7]} 15... Nxd5 {[%clk 0:02:28.1]} 16. Nxd5 {[%clk 0:02:28.6]} 16... Qxd5
{[%clk 0:02:24.3]} 17. Qxd5 {[%clk 0:02:27.8]} 17... Bxd5 {[%clk 0:02:23.6]} 18.
Rad1 {[%clk 0:02:13.2]} 18... Rad8 {[%clk 0:02:15.6]} 19. Kf2 {[%clk 0:02:09.9]}
19... Bc6 {[%clk 0:02:11.5]} 20. Rxd8 {[%clk 0:02:08.3]} 20... Rxd8 {[%clk
0:02:10.2]} 21. c4 {[%clk 0:01:37.4]} 21... Bf6 {[%clk 0:01:38.9]} 22. b3 {[%clk
0:01:34]} 22... Bd4 {[%clk 0:01:31.5]} 23. Bxd4 {[%clk 0:01:29.8]} 23... Rxd4
{[%clk 0:01:24.2]} 24. Rc1 {[%clk 0:01:29]} 24... bxc4 {[%clk 0:01:16.7]} 25.
Bxc4 {[%clk 0:01:28.4]} 25... a5 {[%clk 0:00:42.7]} 26. Be2 {[%clk 0:01:22.4]}
26... c4 {[%clk 0:00:34.4]} 27. Rxc4 {[%clk 0:01:21]} 27... Rxc4 {[%clk
0:00:33.7]} 28. Bxc4 {[%clk 0:01:20.9]} 28... Kf8 {[%clk 0:00:33.6]} 29. Ke3
{[%clk 0:01:18.3]} 29... Ke7 {[%clk 0:00:33.4]} 30. g3 {[%clk 0:01:18.6]} 30...
f6 {[%clk 0:00:32.9]} 31. f4 {[%clk 0:01:18.7]} 31... Kd6 {[%clk 0:00:32.6]} 32.
Kd4 {[%clk 0:01:18.9]} 32... Bf3 {[%clk 0:00:30.6]} 33. Bd3 {[%clk 0:01:12.3]}
33... h6 {[%clk 0:00:29]} 34. Be4 {[%clk 0:01:09.3]} 34... Be2 {[%clk
0:00:28.2]} 35. b4 {[%clk 0:01:09.3]} 35... axb4 {[%clk 0:00:26.7]} 36. axb4
{[%clk 0:01:09.4]} 36... g5 {[%clk 0:00:25.5]} 37. Bd3 {[%clk 0:01:07.1]} 37...
Bf3 {[%clk 0:00:24.3]} 38. b5 {[%clk 0:01:07.1]} 38... gxf4 {[%clk 0:00:22.1]}
39. gxf4 {[%clk 0:01:07.4]} 39... Bb7 {[%clk 0:00:20.9]} 40. Be4 {[%clk
0:01:06.8]} 40... Bc8 {[%clk 0:00:18.5]} 41. b6 {[%clk 0:01:04.8]} 41... Be6
{[%clk 0:00:18.2]} 42. Bf3 {[%clk 0:00:55.5]} 42... Bf5 {[%clk 0:00:15.6]} 43.
Kc4 {[%clk 0:00:54.4]} 43... Bd7 {[%clk 0:00:13.8]} 44. Kb4 {[%clk 0:00:52.7]}
44... Be8 {[%clk 0:00:07.3]} 45. Ka5 {[%clk 0:00:52]} 1-0